fUST/lending_fUST_20250318
["ID","MTS","AMOUNT","RATE_DAILY","PERIOD"]
[356332558,1742286684480,-206.0,0.00010958,2]
[356332559,1742286684489,-206.0,0.00010958,2]
[356332560,1742286684499,-206.0,0.00010958,2]
[356332561,1742286684508,-500.0,0.00010958,2]
[356332562,1742286684519,-502.89,0.00010958,2]
[356332563,1742286684528,-500.0,0.00010958,2]
[356332564,1742286684537,-500.0,0.00010958,2]
[356332565,1742286684546,-286.66090622,0.00010958,2]
[356332566,1742286684555,-532.35570439,0.00010958,2]
[356332567,1742286684564,-500.0,0.00010958,2]
[356332568,1742286684573,-393.15,0.00010958,2]
[356332569,1742286684582,-500.0,0.00010958,2]
[356332570,1742286684591,-500.0,0.00010958,2]
[356332571,1742286684601,-500.0,0.00010958,2]
[356332572,1742286684610,-500.0,0.00010958,2]
[356332573,1742286684620,-500.0,0.00010958,2]
[356332574,1742286684629,-500.0,0.00010958,2]
[356332575,1742286684638,-500.0,0.00010958,2]
[356332576,1742286684647,-500.0,0.00010958,2]
[356332577,1742286684656,-569.81138315,0.00010958,2]
[356332578,1742286684665,-500.0,0.00010958,2]
[356332579,1742286684674,-500.0,0.00010958,2]
[356332580,1742286684683,-500.0,0.00010958,2]
[356332581,1742286684693,-500.0,0.00010958,2]
[356332582,1742286684702,-500.0,0.00010958,2]
[356332583,1742286684711,-555.64716854,0.00010958,2]
[356332584,1742286684721,-500.0,0.00010958,2]
[356332585,1742286684730,-500.0,0.00010958,2]
[356332586,1742286684739,-500.0,0.00010958,2]
[356332587,1742286684748,-622.72,0.00010958,2]
[356332588,1742286684758,-917.74,0.00010958,2]
[356332589,1742286684767,-500.0,0.00010958,2]
[356332590,1742286684777,-500.0,0.00010958,2]
[356332591,1742286684787,-300.16929536,0.00010958,2]
[356332592,1742286684796,-500.0,0.00010958,2]
[356332593,1742286684805,-500.0,0.00010958,2]
[356332594,1742286684814,-1028.0,0.00010958,2]
[356332595,1742286684823,-500.0,0.00010958,2]
[356332596,1742286684832,-500.0,0.00010958,2]
[356332597,1742286684841,-500.0,0.00010958,2]
[356332598,1742286684851,-1921.6,0.00010958,2]
[356332599,1742286684860,-500.0,0.00010958,2]
[356332600,1742286684870,-653.08,0.00010958,2]
[356332601,1742286684879,-2008.81,0.00010958,2]
[356332602,1742286684888,-500.0,0.00010958,2]
[356332603,1742286684898,-2178.78,0.00010958,2]
[356332604,1742286684907,-534.92,0.00010958,2]
[356332605,1742286684916,-2521.8,0.00010958,2]
[356332606,1742286684925,-545.15912986,0.00010958,2]
[356332607,1742286684935,-529.85,0.00010958,2]
[356332608,1742286684944,-500.0,0.00010958,2]
[356332609,1742286684953,-500.0,0.00010958,2]
[356332610,1742286684963,-500.0,0.00010958,2]
[356332611,1742286684973,-922.48,0.00010958,2]
[356332612,1742286684982,-680.36,0.00010958,2]
[356332613,1742286684991,-500.0,0.00010958,2]
[356332614,1742286685000,-682.75,0.00010958,2]
[356332615,1742286685010,-610.02,0.00010958,2]
[356332616,1742286685020,-500.0,0.00010958,2]
[356332617,1742286685030,-674.0,0.00010958,2]
[356332618,1742286685039,-2151.35,0.00010958,2]
[356332619,1742286685049,-1105.69,0.00010958,2]
[356332620,1742286685059,-500.0,0.00010958,2]
[356332621,1742286685069,-355.34049518,0.00010958,2]
[356332622,1742286685078,-1281.22,0.00010958,2]
[356332623,1742286685088,-500.0,0.00010958,2]
[356332624,1742286685097,-500.0,0.00010958,2]
[356332625,1742286685107,-500.0,0.00010958,2]
[356332626,1742286685117,-778.89,0.00010958,2]
[356332627,1742286685130,-907.84,0.00010958,2]
[356332628,1742286685139,-500.0,0.00010958,2]
[356332629,1742286685149,-14498.22,0.00010958,2]
[356332630,1742286685158,-763.96,0.00010958,2]
[356332631,1742286685170,-500.0,0.00010958,2]
[356332632,1742286685179,-2492.38,0.00010958,2]
[356332633,1742286685189,-233.59408721,0.00010958,2]
[356332634,1742286685199,-885.14,0.00010958,2]
[356332635,1742286685208,-626.66,0.00010958,2]
[356332636,1742286685217,-500.0,0.00010958,2]
[356332637,1742286685226,-1236.95,0.00010958,2]
[356332638,1742286685236,-500.0,0.00010958,2]
[356332639,1742286685246,-1394.36,0.00010958,2]
[356332640,1742286685255,-667.87,0.00010958,2]
[356332641,1742286685264,-500.0,0.00010958,2]
[356332642,1742286685273,-500.0,0.00010958,2]
[356332643,1742286685282,-500.0,0.00010958,2]
[356332644,1742286685292,-1394.43,0.00010958,2]
[356332645,1742286685300,-5190.96,0.00010958,2]
[356332646,1742286685310,-500.0,0.00010958,2]
[356332647,1742286685319,-514.33500379,0.00010958,2]
[356332648,1742286685329,-1898.09,0.00010958,2]
[356332649,1742286685338,-500.0,0.00010958,2]
[356332650,1742286685348,-505.21,0.00010958,2]
[356332651,1742286685358,-604.25,0.00010958,2]
[356332652,1742286685367,-500.0,0.00010958,2]
[356332653,1742286685376,-687.55,0.00010958,2]
[356332654,1742286685385,-1875.08,0.00010958,2]
[356332655,1742286685394,-517.9,0.00010958,2]
[356332656,1742286685403,-6229.78,0.00010958,2]
[356332657,1742286685412,-500.0,0.00010958,2]
[356332658,1742286685421,-500.0,0.00010958,2]
[356332659,1742286685430,-10748.02,0.00010958,2]
[356332660,1742286685439,-4015.9,0.00010958,2]
[356332661,1742286685448,-7811.31,0.00010958,2]
[356332662,1742286685457,-1219.17,0.00010958,2]
[356332663,1742286685467,-500.0,0.00010958,2]
[356332664,1742286685476,-500.0,0.00010958,2]
[356332665,1742286685486,-5865.91,0.00010958,2]
[356332666,1742286685495,-1567.61,0.00010958,2]
[356332667,1742286685505,-2101.67,0.00010958,2]
[356332668,1742286685514,-500.0,0.00010958,2]
[356332669,1742286685524,-1103.93,0.00010958,2]
[356332670,1742286685534,-500.0,0.00010958,2]
[356332671,1742286685543,-544.93945384,0.00010958,2]
[356332672,1742286685554,-500.0,0.00010958,2]
[356332673,1742286685563,-1658.96,0.00010958,2]
[356332674,1742286685572,-500.0,0.00010958,2]
[356332675,1742286685583,-98083.34,0.00010958,2]
[356332676,1742286685592,-500.0,0.00010958,2]
[356332677,1742286685602,-656.05,0.00010958,2]
[356332678,1742286685611,-500.0,0.00010958,2]
[356332679,1742286685620,-217.2,0.00010958,2]
[356332680,1742286685630,-2562.21,0.00010958,2]
[356332681,1742286685640,-3833.09,0.00010958,2]
[356332682,1742286685649,-500.0,0.00010958,2]
[356332683,1742286685659,-1785.76,0.00010958,2]
[356332684,1742286685669,-1141.65,0.00010958,2]
[356332685,1742286685680,-500.0,0.00010958,2]
[356332686,1742286685690,-6740.53,0.00010958,2]
[356332687,1742286685700,-1590.13,0.00010958,2]
[356332688,1742286685709,-700.85,0.00010958,2]
[356332689,1742286685719,-9675.79,0.00010958,2]
[356332690,1742286685728,-500.0,0.00010958,2]
[356332691,1742286685738,-884.32,0.00010958,2]
[356332692,1742286685748,-2187.92,0.00010958,2]
[356332693,1742286685757,-3166.23,0.00010958,2]
[356332694,1742286685766,-500.0,0.00010958,2]
[356332695,1742286685775,-846.0,0.00010958,2]
[356332696,1742286685785,-512.0906092,0.00010958,2]
[356332697,1742286685795,-510.69525253,0.00010958,2]
[356332698,1742286685804,-512.05397887,0.00010958,2]
[356332699,1742286685814,-847.69,0.00010958,2]
[356332700,1742286685823,-1476.4,0.00010958,2]
[356332701,1742286685833,-1068.47,0.00010958,2]
[356332702,1742286685842,-500.0,0.00010958,2]
[356332703,1742286685852,-2552.77,0.00010958,2]
[356332704,1742286685863,-8078.39,0.00010958,2]
[356332705,1742286685872,-574.26,0.00010958,2]
[356332706,1742286685881,-3125.56,0.00010958,2]
[356332707,1742286685890,-500.0,0.00010958,2]
[356332708,1742286685898,-500.0,0.00010958,2]
[356332709,1742286685907,-500.0,0.00010958,2]
[356332710,1742286685917,-151.99437,0.00010958,2]
[356332711,1742286685927,-2010.1,0.00010958,2]
[356332712,1742286685937,-500.0,0.00010958,2]
[356332713,1742286685946,-890.39,0.00010958,2]
[356332714,1742286685956,-500.0,0.00010958,2]
[356332715,1742286685965,-602.83,0.00010958,2]
[356332716,1742286685974,-500.0,0.00010958,2]
[356332717,1742286685984,-500.0,0.00010958,2]
[356332718,1742286685993,-1007.4,0.00010958,2]
[356332719,1742286686002,-500.0,0.00010958,2]
[356332720,1742286686011,-500.0,0.00010958,2]
[356332721,1742286686020,-4662.69,0.00010958,2]
[356332722,1742286686029,-500.0,0.00010958,2]
[356332723,1742286686038,-1611.39,0.00010958,2]
[356332724,1742286686047,-500.0,0.00010958,2]
[356332725,1742286686056,-642.65,0.00010958,2]
[356332726,1742286686067,-500.0,0.00010958,2]
[356332727,1742286686077,-628.53,0.00010958,2]
[356332728,1742286686087,-500.0,0.00010958,2]
[356332729,1742286686096,-1500.8,0.00010958,2]
[356332730,1742286686106,-778.05,0.00010958,2]
[356332731,1742286686116,-663.29,0.00010958,2]
[356332732,1742286686127,-690.44,0.00010958,2]
[356332733,1742286686136,-500.0,0.00010958,2]
[356332734,1742286686146,-151.0,0.00010959,2]
[356332735,1742286686155,-151.0,0.00010959,2]
[356332736,1742286686166,-151.0,0.00010959,2]
[356332737,1742286686175,-151.0,0.00010959,2]
[356332738,1742286686184,-151.0,0.00010959,2]
[356332739,1742286686194,-292.0,0.00010959,2]
[356332740,1742286686206,-1480.805111,0.00010959,2]
[356332741,1742286686216,-160.0,0.00010959,2]
[356332742,1742286686226,-160.0,0.00010959,2]
[356332743,1742286686235,-160.0,0.00010959,2]
[356332744,1742286686246,-251.93115586,0.00010959,2]
[356332745,1742286686255,-160.0,0.00010959,2]
[356332746,1742286686265,-160.0,0.00010959,2]
[356332747,1742286686275,-22016.48,0.00010959,2]
[356332748,1742286686285,-18347.06,0.00010959,2]
[356332749,1742286686295,-15289.22,0.00010959,2]
[356332750,1742286686305,-12741.02,0.00010959,2]
[356332751,1742286686314,-10617.51,0.00010959,2]
[356332752,1742286686325,-8847.93,0.00010959,2]
[356332753,1742286686335,-7373.27,0.00010959,2]
[356332754,1742286686344,-6144.39,0.00010959,2]
[356332755,1742286686354,-835.11200367,0.00010996,2]
[356332756,1742286686364,-267.5,0.00011,2]
[356332757,1742286686373,-586.06038,0.0001104,2]
[356332758,1742286686382,-399.0,0.00011129,2]
[356332759,1742286686392,-17600.0,0.000112,6]
[356332760,1742286686402,-1443.0,0.000112,3]
[356332761,1742286686411,-166.0,0.000112,2]
[356332762,1742286686421,-166.0,0.000112,2]
[356332763,1742286686430,-162.89753949,0.000112,2]
[356332764,1742286686439,-207.24563591,0.000112,2]
[356332765,1742286686449,-309.96756898,0.000112,2]
[356332766,1742286686459,-354.0,0.000112,2]
[356332767,1742286686468,-354.0,0.000112,2]
[356332768,1742286686478,-317.0,0.000112,2]
[356332769,1742286686488,-317.0,0.000112,2]
[356332770,1742286686499,-354.0,0.000112,2]
[356332771,1742286686509,-317.0,0.000112,2]
[356332772,1742286686519,-354.0,0.000112,2]
[356332773,1742286686530,-317.0,0.000112,2]
[356332774,1742286686539,-354.0,0.000112,2]
[356332775,1742286686548,-317.0,0.000112,2]
[356332776,1742286686558,-354.0,0.000112,2]
[356332777,1742286686568,-317.0,0.000112,2]
[356332778,1742286686578,-354.0,0.000112,2]
[356332779,1742286686706,-317.0,0.000112,2]
[356332780,1742286686717,-354.0,0.000112,2]
[356332781,1742286686727,-317.0,0.000112,2]
[356332782,1742286686736,-354.0,0.000112,2]
[356332783,1742286686746,-317.0,0.000112,2]
[356332784,1742286686756,-354.0,0.000112,2]
[356332785,1742286686765,-317.0,0.000112,2]
[356332786,1742286686775,-354.0,0.000112,2]
[356332787,1742286686787,-317.0,0.000112,2]
[356332788,1742286686797,-317.0,0.000112,2]
[356332789,1742286686806,-354.0,0.000112,2]
[356332790,1742286686815,-317.0,0.000112,2]
[356332791,1742286686825,-354.0,0.000112,2]
[356332792,1742286686834,-318.08653686,0.000112,2]
[356332793,1742286686844,-354.0,0.000112,2]
[356332794,1742286686854,-350.60160343,0.000112,2]
[356332795,1742286686864,-735.0,0.000112,2]
[356332796,1742286686874,-151.99437,0.000112,6]
[356332797,1742286686884,-151.99437,0.000112,6]
[356332798,1742286686894,-160.0,0.00011231,2]
[356332799,1742286686904,-160.0,0.00011231,2]
[356332800,1742286686914,-160.0,0.00011231,2]
[356332801,1742286686924,-500.0,0.00011232,2]
[356332802,1742286686934,-502.89,0.00011232,2]
[356332803,1742286686944,-500.0,0.00011232,2]
[356332804,1742286686954,-500.0,0.00011232,2]
[356332805,1742286686964,-500.0,0.00011232,2]
[356332806,1742286686973,-500.0,0.00011232,2]
[356332807,1742286686983,-500.0,0.00011232,2]
[356332808,1742286686993,-187.42993063,0.00011232,2]
[356332809,1742286687004,-500.0,0.00011232,2]
[356332810,1742286687014,-500.0,0.00011232,2]
[356332811,1742286687025,-500.0,0.00011232,2]
[356332812,1742286687036,-500.0,0.00011232,2]
[356332813,1742286687046,-500.0,0.00011232,2]
[356332814,1742286687056,-500.0,0.00011232,2]
[356332815,1742286687066,-500.0,0.00011232,2]
[356332816,1742286687075,-500.0,0.00011232,2]
[356332817,1742286687085,-500.0,0.00011232,2]
[356332818,1742286687094,-500.0,0.00011232,2]
[356332819,1742286687105,-500.0,0.00011232,2]
[356332820,1742286687116,-500.0,0.00011232,2]
[356332821,1742286687129,-622.72,0.00011232,2]
[356332822,1742286687138,-917.74,0.00011232,2]
[356332823,1742286687148,-500.0,0.00011232,2]
[356332824,1742286687159,-500.0,0.00011232,2]
[356332825,1742286687168,-500.0,0.00011232,2]
[356332826,1742286687180,-500.0,0.00011232,2]
[356332827,1742286687189,-1028.0,0.00011232,2]
[356332828,1742286687200,-500.0,0.00011232,2]
[356332829,1742286687210,-500.0,0.00011232,2]
[356332830,1742286687219,-500.0,0.00011232,2]
[356332831,1742286687229,-1921.6,0.00011232,2]
[356332832,1742286687239,-500.0,0.00011232,2]
[356332833,1742286687248,-653.08,0.00011232,2]
[356332834,1742286687258,-2008.81,0.00011232,2]
[356332835,1742286687267,-500.0,0.00011232,2]
[356332836,1742286687277,-2178.78,0.00011232,2]
[356332837,1742286687287,-2521.8,0.00011232,2]
[356332838,1742286687296,-529.85,0.00011232,2]
[356332839,1742286687306,-500.0,0.00011232,2]
[356332840,1742286687316,-492.9655484,0.00011232,2]
[356332841,1742286687326,-500.0,0.00011232,2]
[356332842,1742286687337,-922.48,0.00011232,2]
[356332843,1742286687346,-680.36,0.00011232,2]
[356332844,1742286687355,-500.0,0.00011232,2]
[356332845,1742286687365,-682.75,0.00011232,2]
[356332846,1742286687374,-610.02,0.00011232,2]
[356332847,1742286687384,-500.0,0.00011232,2]
[356332848,1742286687394,-674.0,0.00011232,2]
[356332849,1742286687403,-2151.35,0.00011232,2]
[356332850,1742286687415,-1105.69,0.00011232,2]
[356332851,1742286687426,-461.01307984,0.00011232,2]
[356332852,1742286687435,-1281.22,0.00011232,2]
[356332853,1742286687448,-500.0,0.00011232,2]
[356332854,1742286687457,-500.0,0.00011232,2]
[356332855,1742286687466,-500.0,0.00011232,2]
[356332856,1742286687476,-778.89,0.00011232,2]
[356332857,1742286687485,-907.84,0.00011232,2]
[356332858,1742286687494,-500.0,0.00011232,2]
[356332859,1742286687504,-14498.22,0.00011232,2]
[356332860,1742286687513,-763.96,0.00011232,2]
[356332861,1742286687523,-500.0,0.00011232,2]
[356332862,1742286687534,-2492.38,0.00011232,2]
[356332863,1742286687543,-885.14,0.00011232,2]
[356332864,1742286687553,-626.66,0.00011232,2]
[356332865,1742286687562,-500.0,0.00011232,2]
[356332866,1742286687571,-1236.95,0.00011232,2]
[356332867,1742286687582,-500.0,0.00011232,2]
[356332868,1742286687591,-1394.36,0.00011232,2]
[356332869,1742286687600,-667.87,0.00011232,2]
[356332870,1742286687610,-500.0,0.00011232,2]
[356332871,1742286687620,-500.0,0.00011232,2]
[356332872,1742286687630,-1394.43,0.00011232,2]
[356332873,1742286687639,-5190.96,0.00011232,2]
[356332874,1742286687648,-500.0,0.00011232,2]
[356332875,1742286687657,-500.0,0.00011232,2]
[356332876,1742286687667,-1898.09,0.00011232,2]
[356332877,1742286687676,-500.0,0.00011232,2]
[356332878,1742286687685,-505.21,0.00011232,2]
[356332879,1742286687696,-604.25,0.00011232,2]
[356332880,1742286687705,-500.0,0.00011232,2]
[356332881,1742286687715,-687.55,0.00011232,2]
[356332882,1742286687724,-1875.08,0.00011232,2]
[356332883,1742286687734,-517.9,0.00011232,2]
[356332884,1742286687743,-6229.78,0.00011232,2]
[356332885,1742286687752,-500.0,0.00011232,2]
[356332886,1742286687762,-500.0,0.00011232,2]
[356332887,1742286687772,-10748.02,0.00011232,2]
[356332888,1742286687782,-4015.9,0.00011232,2]
[356332889,1742286687791,-7811.31,0.00011232,2]
[356332890,1742286687801,-1219.17,0.00011232,2]
[356332891,1742286687811,-500.0,0.00011232,2]
[356332892,1742286687822,-500.0,0.00011232,2]
[356332893,1742286687833,-5865.91,0.00011232,2]
[356332894,1742286687842,-1567.61,0.00011232,2]
[356332895,1742286687852,-2101.67,0.00011232,2]
[356332896,1742286687862,-500.0,0.00011232,2]
[356332897,1742286687872,-1103.93,0.00011232,2]
[356332898,1742286687881,-500.0,0.00011232,2]
[356332899,1742286687891,-500.0,0.00011232,2]
[356332900,1742286687901,-1658.96,0.00011232,2]
[356332901,1742286687911,-500.0,0.00011232,2]
[356332902,1742286687921,-98083.34,0.00011232,2]
[356332903,1742286687930,-500.0,0.00011232,2]
[356332904,1742286687940,-656.05,0.00011232,2]
[356332905,1742286687950,-500.0,0.00011232,2]
[356332906,1742286687960,-2562.21,0.00011232,2]
[356332907,1742286687970,-3833.09,0.00011232,2]
[356332908,1742286687979,-500.0,0.00011232,2]
[356332909,1742286687989,-1785.76,0.00011232,2]
[356332910,1742286687999,-1141.65,0.00011232,2]
[356332911,1742286688009,-500.0,0.00011232,2]
[356332912,1742286688019,-6740.53,0.00011232,2]
[356332913,1742286688029,-1590.13,0.00011232,2]
[356332914,1742286688039,-700.85,0.00011232,2]
[356332915,1742286688048,-9675.79,0.00011232,2]
[356332916,1742286688058,-884.32,0.00011232,2]
[356332917,1742286688067,-500.0,0.00011232,2]
[356332918,1742286688077,-2187.92,0.00011232,2]
[356332919,1742286688086,-3166.23,0.00011232,2]
[356332920,1742286688095,-500.0,0.00011232,2]
[356332921,1742286688105,-846.0,0.00011232,2]
[356332922,1742286688115,-847.69,0.00011232,2]
[356332923,1742286688126,-1476.4,0.00011232,2]
[356332924,1742286688136,-1068.47,0.00011232,2]
[356332925,1742286688146,-500.0,0.00011232,2]
[356332926,1742286688155,-2552.77,0.00011232,2]
[356332927,1742286688164,-8078.39,0.00011232,2]
[356332928,1742286688174,-574.26,0.00011232,2]
[356332929,1742286688183,-3125.56,0.00011232,2]
[356332930,1742286688193,-500.0,0.00011232,2]
[356332931,1742286688204,-500.0,0.00011232,2]
[356332932,1742286688213,-500.0,0.00011232,2]
[356332933,1742286688223,-2010.1,0.00011232,2]
[356332934,1742286688232,-890.39,0.00011232,2]
[356332935,1742286688242,-500.0,0.00011232,2]
[356332936,1742286688251,-602.83,0.00011232,2]
[356332937,1742286688261,-500.0,0.00011232,2]
[356332938,1742286688270,-1007.4,0.00011232,2]
[356332939,1742286688279,-500.0,0.00011232,2]
[356332940,1742286688289,-500.0,0.00011232,2]
[356332941,1742286688298,-4662.69,0.00011232,2]
[356332942,1742286688308,-500.0,0.00011232,2]
[356332943,1742286688317,-1611.39,0.00011232,2]
[356332944,1742286688326,-500.0,0.00011232,2]
[356332945,1742286688335,-642.65,0.00011232,2]
[356332946,1742286688345,-500.0,0.00011232,2]
[356332947,1742286688355,-628.53,0.00011232,2]
[356332948,1742286688365,-500.0,0.00011232,2]
[356332949,1742286688374,-1500.8,0.00011232,2]
[356332950,1742286688383,-778.05,0.00011232,2]
[356332951,1742286688393,-663.29,0.00011232,2]
[356332952,1742286688402,-690.44,0.00011232,2]
[356332953,1742286688411,-500.0,0.00011232,2]
[356332954,1742286688421,-835.11200367,0.00011286,2]
[356332955,1742286688430,-160.0,0.00011335,3]
[356332956,1742286688439,-500.0,0.0001139,2]
[356332957,1742286688448,-500.0,0.00011506,2]
[356332958,1742286688457,-502.89,0.00011506,2]
[356332959,1742286688466,-500.0,0.00011506,2]
[356332960,1742286688475,-500.0,0.00011506,2]
[356332961,1742286688484,-500.0,0.00011506,2]
[356332962,1742286688494,-500.0,0.00011506,2]
[356332963,1742286688503,-500.0,0.00011506,2]
[356332964,1742286688512,-500.0,0.00011506,2]
[356332965,1742286688521,-500.0,0.00011506,2]
[356332966,1742286688531,-500.0,0.00011506,2]
[356332967,1742286688541,-500.0,0.00011506,2]
[356332968,1742286688551,-500.0,0.00011506,2]
[356332969,1742286688560,-500.0,0.00011506,2]
[356332970,1742286688569,-500.0,0.00011506,2]
[356332971,1742286688578,-511.04410674,0.00011506,2]
[356332972,1742286688587,-500.0,0.00011506,2]
[356332973,1742286688596,-500.0,0.00011506,2]
[356332974,1742286688605,-500.0,0.00011506,2]
[356332975,1742286688615,-265.44,0.00011506,2]
[356332976,1742286688624,-622.72,0.00011506,2]
[356332977,1742286688633,-917.74,0.00011506,2]
[356332978,1742286688642,-434.83,0.00011506,2]
[356332979,1742286688650,-172.16,0.00011506,2]
[356332980,1742286688659,-500.0,0.00011506,2]
[356332981,1742286688669,-500.0,0.00011506,2]
[356332982,1742286688678,-1028.0,0.00011506,2]
[356332983,1742286688687,-500.0,0.00011506,2]
[356332984,1742286688697,-500.0,0.00011506,2]
[356332985,1742286688706,-1921.6,0.00011506,2]
[356332986,1742286688716,-500.0,0.00011506,2]
[356332987,1742286688726,-653.08,0.00011506,2]
[356332988,1742286688735,-2008.81,0.00011506,2]
[356332989,1742286688744,-2178.78,0.00011506,2]
[356332990,1742286688753,-2521.8,0.00011506,2]
[356332991,1742286688762,-529.85,0.00011506,2]
[356332992,1742286688772,-500.0,0.00011506,2]
[356332993,1742286688783,-500.0,0.00011506,2]
[356332994,1742286688792,-922.48,0.00011506,2]
[356332995,1742286688801,-680.36,0.00011506,2]
[356332996,1742286688811,-571.47035506,0.00011506,2]
[356332997,1742286688820,-610.02,0.00011506,2]
[356332998,1742286688829,-682.75,0.00011506,2]
[356332999,1742286688838,-500.0,0.00011506,2]
[356333000,1742286688847,-674.0,0.00011506,2]
[356333001,1742286688856,-2151.35,0.00011506,2]
[356333002,1742286688866,-1105.69,0.00011506,2]
[356333003,1742286688876,-1281.22,0.00011506,2]
[356333004,1742286688885,-500.0,0.00011506,2]
[356333005,1742286688894,-500.0,0.00011506,2]
[356333006,1742286688903,-282.39470158,0.00011506,2]
[356333007,1742286688912,-778.89,0.00011506,2]
[356333008,1742286688922,-907.84,0.00011506,2]
[356333009,1742286688931,-397.22793731,0.00011506,2]
[356333010,1742286688940,-14498.22,0.00011506,2]
[356333011,1742286688950,-763.96,0.00011506,2]
[356333012,1742286688959,-500.0,0.00011506,2]
[356333013,1742286688968,-2492.38,0.00011506,2]
[356333014,1742286688979,-885.14,0.00011506,2]
[356333015,1742286688988,-626.66,0.00011506,2]
[356333016,1742286688997,-500.0,0.00011506,2]
[356333017,1742286689007,-1236.95,0.00011506,2]
[356333018,1742286689017,-500.0,0.00011506,2]
[356333019,1742286689027,-1394.36,0.00011506,2]
[356333020,1742286689038,-667.87,0.00011506,2]
[356333021,1742286689047,-500.0,0.00011506,2]
[356333022,1742286689056,-500.0,0.00011506,2]
[356333023,1742286689066,-1394.43,0.00011506,2]
[356333024,1742286689075,-5190.96,0.00011506,2]
[356333025,1742286689084,-510.72033535,0.00011506,2]
[356333026,1742286689093,-583.35,0.00011506,2]
[356333027,1742286689103,-1898.09,0.00011506,2]
[356333028,1742286689112,-500.0,0.00011506,2]
[356333029,1742286689123,-505.21,0.00011506,2]
[356333030,1742286689135,-604.25,0.00011506,2]
[356333031,1742286689144,-500.0,0.00011506,2]
[356333032,1742286689154,-687.55,0.00011506,2]
[356333033,1742286689164,-1875.08,0.00011506,2]
[356333034,1742286689174,-517.9,0.00011506,2]
[356333035,1742286689184,-6229.78,0.00011506,2]
[356333036,1742286689193,-500.0,0.00011506,2]
[356333037,1742286689204,-500.0,0.00011506,2]
[356333038,1742286689214,-10748.02,0.00011506,2]
[356333039,1742286689223,-4015.9,0.00011506,2]
[356333040,1742286689233,-7811.31,0.00011506,2]
[356333041,1742286689243,-1219.17,0.00011506,2]
[356333042,1742286689254,-500.0,0.00011506,2]
[356333043,1742286689263,-500.0,0.00011506,2]
[356333044,1742286689273,-5865.91,0.00011506,2]
[356333045,1742286689286,-1567.61,0.00011506,2]
[356333046,1742286689296,-2101.67,0.00011506,2]
[356333047,1742286689306,-500.0,0.00011506,2]
[356333048,1742286689315,-1103.93,0.00011506,2]
[356333049,1742286689325,-500.0,0.00011506,2]
[356333050,1742286689335,-537.42628072,0.00011506,2]
[356333051,1742286689345,-1658.96,0.00011506,2]
[356333052,1742286689355,-500.0,0.00011506,2]
[356333053,1742286689364,-98083.34,0.00011506,2]
[356333054,1742286689374,-500.0,0.00011506,2]
[356333055,1742286689383,-656.05,0.00011506,2]
[356333056,1742286689392,-591.09320919,0.00011506,2]
[356333057,1742286689402,-2562.21,0.00011506,2]